[Event "Titled Tuesday Blitz May 2 Early 2023"]
[White "Khamdamova, Afruza"]
[Black "Tsyhanchuk, Stanislav"]
[WhiteFideId "14210444"]
[BlackFideId "13505130"]
[WhiteElo "2210"]
[BlackElo "2173"]
[Result "1/2-1/2"]
[Round "04"]
[TimeControl "180+2"]
[Date "2023.05.02"]
[WhiteClock "0:00:03"]
[BlackClock "0:00:04"]

1. e4 {[%clk 0:03:00]}  c5 {[%clk 0:02:57]} 2. Nf3 {[%clk 0:03:01]}  d6 {[%clk 0:02:57]} 3. d4 {[%clk 0:03:01]}  cxd4 {[%clk 0:02:58]} 4. Nxd4 {[%clk 0:03:01]}  Nf6 {[%clk 0:02:58]} 5. Nc3 {[%clk 0:03:01]}  a6 {[%clk 0:02:59]} 6. Bg5 {[%clk 0:03:00]}  e6 {[%clk 0:02:59]} 7. Qe2 {[%clk 0:03:00]}  Be7 {[%clk 0:02:56]} 8. h4 {[%clk 0:03:00]}  Nbd7 {[%clk 0:02:56]} 9. O-O-O {[%clk 0:03:00]}  Qc7 {[%clk 0:02:48]} 10. g4 {[%clk 0:02:58]}  b5 {[%clk 0:02:48]} 11. a3 {[%clk 0:02:58]}  Bb7 {[%clk 0:02:48]} 12. Bg2 {[%clk 0:02:58]}  Ne5 {[%clk 0:02:29]} 13. f3 {[%clk 0:02:31]}  Nc4 {[%clk 0:02:21]} 14. Kb1 {[%clk 0:02:30]}  Nxa3+ {[%clk 0:02:19]} 15. bxa3 {[%clk 0:02:17]}  Qxc3 {[%clk 0:02:19]} 16. Bc1 {[%clk 0:02:17]}  b4 {[%clk 0:02:05]} 17. Bb2 {[%clk 0:02:16]}  Qc5 {[%clk 0:02:01]} 18. Nb3 {[%clk 0:02:17]}  Qb6 {[%clk 0:02:01]} 19. Bd4 {[%clk 0:02:15]}  Qc7 {[%clk 0:01:49]} 20. axb4 {[%clk 0:02:15]}  Bc6 {[%clk 0:01:44]} 21. f4 {[%clk 0:02:06]}  Bb5 {[%clk 0:01:26]} 22. Qf3 {[%clk 0:02:04]}  O-O-O {[%clk 0:01:20]} 23. g5 {[%clk 0:01:39]}  Nd7 {[%clk 0:01:18]} 24. Bxg7 {[%clk 0:01:37]}  Nb6 {[%clk 0:01:13]} 25. Qc3 {[%clk 0:01:19]}  Rhg8 {[%clk 0:01:09]} 26. Qxc7+ {[%clk 0:01:15]}  Kxc7 {[%clk 0:01:10]} 27. Bd4 {[%clk 0:01:16]}  Nc4 {[%clk 0:01:07]} 28. Na5 {[%clk 0:01:11]}  h6 {[%clk 0:00:52]} 29. Bf1 {[%clk 0:00:58]}  d5 {[%clk 0:00:25]} 30. Nxc4 {[%clk 0:00:47]}  dxc4 {[%clk 0:00:24]} 31. c3 {[%clk 0:00:41]}  Kb7 {[%clk 0:00:19]} 32. Be2 {[%clk 0:00:36]}  hxg5 {[%clk 0:00:17]} 33. hxg5 {[%clk 0:00:36]}  a5 {[%clk 0:00:14]} 34. bxa5 {[%clk 0:00:30]}  Ba4 {[%clk 0:00:15]} 35. Rd2 {[%clk 0:00:29]}  Bb3 {[%clk 0:00:15]} 36. Rb2 {[%clk 0:00:28]}  Kc8 {[%clk 0:00:12]} 37. a6 {[%clk 0:00:25]}  Ba3 {[%clk 0:00:09]} 38. Rd2 {[%clk 0:00:20]}  Kb8 {[%clk 0:00:09]} 39. Rh7 {[%clk 0:00:19]}  Ka8 {[%clk 0:00:10]} 40. Rxf7 {[%clk 0:00:20]}  Rb8 {[%clk 0:00:11]} 41. Rb7 {[%clk 0:00:16]}  Rxb7 {[%clk 0:00:10]} 42. axb7+ {[%clk 0:00:17]}  Kxb7 {[%clk 0:00:11]} 43. Bf3 {[%clk 0:00:15]}  Be7 {[%clk 0:00:11]} 44. e5+ {[%clk 0:00:15]}  Kc7 {[%clk 0:00:12]} 45. Be4 {[%clk 0:00:10]}  Rb8 {[%clk 0:00:12]} 46. Rb2 {[%clk 0:00:08]}  Ba3 {[%clk 0:00:12]} 47. g6 {[%clk 0:00:08]}  Bxb2 {[%clk 0:00:11]} 48. Kxb2 {[%clk 0:00:09]}  Bd1+ {[%clk 0:00:11]} 49. Kc1 {[%clk 0:00:08]}  Bh5 {[%clk 0:00:11]} 50. f5 {[%clk 0:00:06]}  exf5 {[%clk 0:00:11]} 51. Bxf5 {[%clk 0:00:07]}  Rg8 {[%clk 0:00:10]} 52. e6 {[%clk 0:00:06]}  Bxg6 {[%clk 0:00:10]} 53. Be5+ {[%clk 0:00:06]}  Kd8 {[%clk 0:00:10]} 54. Bh3 {[%clk 0:00:05]}  Bd3 {[%clk 0:00:09]} 55. Bf6+ {[%clk 0:00:05]}  Ke8 {[%clk 0:00:09]} 56. e7 {[%clk 0:00:05]}  Rg6 {[%clk 0:00:09]} 57. Bd4 {[%clk 0:00:02]}  Kxe7 {[%clk 0:00:09]} 58. Kd2 {[%clk 0:00:02]}  Rg3 {[%clk 0:00:08]} 59. Bc8 {[%clk 0:00:03]}  Kd8 {[%clk 0:00:08]} 60. Ba6 {[%clk 0:00:03]}  Rg2+ {[%clk 0:00:08]} 61. Ke3 {[%clk 0:00:03]}  Re2+ {[%clk 0:00:09]} 62. Kf4 {[%clk 0:00:03]}  Kc7 {[%clk 0:00:09]} 63. Bb5 {[%clk 0:00:03]}  Kd6 {[%clk 0:00:09]} 64. Ba4 {[%clk 0:00:02]}  Bc2 {[%clk 0:00:08]} 65. Bb5 {[%clk 0:00:02]}  Bd3 {[%clk 0:00:08]} 66. Ba4 {[%clk 0:00:01]}  Kd5 {[%clk 0:00:08]} 67. Bb5 {[%clk 0:00:01]}  Re4+ {[%clk 0:00:08]} 68. Kf3 {[%clk 0:00:02]}  Rh4 {[%clk 0:00:08]} 69. Bd7 {[%clk 0:00:01]}  Rh7 {[%clk 0:00:04]} 70. Bb5 {[%clk 0:00:01]}  Rb7 {[%clk 0:00:05]} 71. Be8 {[%clk 0:00:01]}  Rb2 {[%clk 0:00:03]} 72. Bf7+ {[%clk 0:00:02]}  Kd6 {[%clk 0:00:03]} 73. Be8 {[%clk 0:00:01]}  Kc7 {[%clk 0:00:03]} 74. Bf7 {[%clk 0:00:01]}  Kb7 {[%clk 0:00:03]} 75. Bd5+ {[%clk 0:00:02]}  Ka6 {[%clk 0:00:03]} 76. Ke3 {[%clk 0:00:02]}  Re2+ {[%clk 0:00:03]} 77. Kf4 {[%clk 0:00:02]}  Ka5 {[%clk 0:00:03]} 78. Kf3 {[%clk 0:00:03]}  Ka4 {[%clk 0:00:03]} 79. Bc5 {[%clk 0:00:02]}  Kb3 {[%clk 0:00:04]} 80. Bb4 {[%clk 0:00:03]}  Rc2 {[%clk 0:00:04]} 81. Ke3 {[%clk 0:00:03]}  Re2+ {[%clk 0:00:04]} 82. Kd4 {[%clk 0:00:03]}  Re8 {[%clk 0:00:05]} 83. Kc5 {[%clk 0:00:03]}  Rc8+ {[%clk 0:00:05]} 84. Kd4 {[%clk 0:00:04]}  Rd8 {[%clk 0:00:06]} 85. Kc5 {[%clk 0:00:04]}  Rc8+ {[%clk 0:00:06]} 86. Kd4 {[%clk 0:00:04]}  Rb8 {[%clk 0:00:07]} 87. Kc5 {[%clk 0:00:05]}  Rd8 {[%clk 0:00:07]} 88. Be6 {[%clk 0:00:04]}  Bf1 {[%clk 0:00:07]} 89. Bd5 {[%clk 0:00:03]}  Be2 {[%clk 0:00:07]} 90. Be6 {[%clk 0:00:03]}  Re8 {[%clk 0:00:07]} 91. Bd5 {[%clk 0:00:03]}  Re5 {[%clk 0:00:08]} 92. Kd4 {[%clk 0:00:03]}  Rh5 {[%clk 0:00:09]} 93. Be6 {[%clk 0:00:03]}  Kc2 {[%clk 0:00:09]} 94. Bf7 {[%clk 0:00:03]}  Rh4+ {[%clk 0:00:08]} 95. Kc5 {[%clk 0:00:03]}  Bd3 {[%clk 0:00:09]} 96. Be6 {[%clk 0:00:02]}  Kb3 {[%clk 0:00:10]} 97. Bf7 {[%clk 0:00:02]}  Rf4 {[%clk 0:00:10]} 98. Be6 {[%clk 0:00:02]}  Be2 {[%clk 0:00:10]} 99. Bd5 {[%clk 0:00:02]}  Rf5 {[%clk 0:00:09]} 100. Kd4 {[%clk 0:00:03]}  Bd3 {[%clk 0:00:07]} 101. Be6 {[%clk 0:00:02]}  Rh5 {[%clk 0:00:07]} 102. Bf7 {[%clk 0:00:02]}  Rh4+ {[%clk 0:00:07]} 103. Kc5 {[%clk 0:00:03]}  Rh7 {[%clk 0:00:07]} 104. Be6 {[%clk 0:00:03]}  Rb7 {[%clk 0:00:07]} 105. Kd4 {[%clk 0:00:03]}  Be2 {[%clk 0:00:05]} 106. Bd5 {[%clk 0:00:03]}  Rc7 {[%clk 0:00:04]} 107. Be6 {[%clk 0:00:03]}  Bh5 {[%clk 0:00:04]} 1/2-1/2


[Site "https://www.chess.com"]

[Event "Titled Tuesday Blitz May 2 Early 2023"]
[White "Goswami, Vedant"]
[Black "Drori, Saar"]
[WhiteFideId "5003725"]
[BlackFideId "2812444"]
[WhiteElo "2011"]
[BlackElo "2322"]
[Result "1-0"]
[Round "04"]
[TimeControl "180+2"]
[Date "2023.05.02"]
[WhiteClock "0:00:53"]
[BlackClock "0:00:04"]

1. b3 {[%clk 0:03:00]}  c5 {[%clk 0:02:50]} 2. Bb2 {[%clk 0:02:59]}  Nc6 {[%clk 0:02:48]} 3. Nf3 {[%clk 0:02:56]}  d6 {[%clk 0:02:47]} 4. e4 {[%clk 0:02:53]}  e5 {[%clk 0:02:48]} 5. Bb5 {[%clk 0:02:52]}  g6 {[%clk 0:02:46]} 6. Bxc6+ {[%clk 0:02:50]}  bxc6 {[%clk 0:02:47]} 7. O-O {[%clk 0:02:45]}  Bg7 {[%clk 0:02:47]} 8. c3 {[%clk 0:02:43]}  Ne7 {[%clk 0:02:47]} 9. d4 {[%clk 0:02:43]}  exd4 {[%clk 0:02:46]} 10. cxd4 {[%clk 0:02:42]}  O-O {[%clk 0:02:47]} 11. Qc2 {[%clk 0:02:38]}  cxd4 {[%clk 0:02:30]} 12. Bxd4 {[%clk 0:02:37]}  Bxd4 {[%clk 0:02:24]} 13. Nxd4 {[%clk 0:02:35]}  c5 {[%clk 0:02:19]} 14. Ne2 {[%clk 0:02:27]}  Nc6 {[%clk 0:02:14]} 15. Nbc3 {[%clk 0:02:25]}  Ba6 {[%clk 0:02:00]} 16. Rfd1 {[%clk 0:02:23]}  Rc8 {[%clk 0:01:44]} 17. Rd2 {[%clk 0:02:20]}  Bxe2 {[%clk 0:01:31]} 18. Nxe2 {[%clk 0:02:18]}  Re8 {[%clk 0:01:31]} 19. Rad1 {[%clk 0:02:17]}  Qe7 {[%clk 0:01:30]} 20. f3 {[%clk 0:02:14]}  f5 {[%clk 0:01:06]} 21. exf5 {[%clk 0:01:53]}  Qe3+ {[%clk 0:01:01]} 22. Kf1 {[%clk 0:01:48]}  Nd4 {[%clk 0:00:44]} 23. Nxd4 {[%clk 0:01:32]}  cxd4 {[%clk 0:00:45]} 24. Qd3 {[%clk 0:01:31]}  gxf5 {[%clk 0:00:29]} 25. Qxd4 {[%clk 0:01:28]}  Qxd4 {[%clk 0:00:27]} 26. Rxd4 {[%clk 0:01:27]}  Rc2 {[%clk 0:00:27]} 27. R4d2 {[%clk 0:01:25]}  Rec8 {[%clk 0:00:26]} 28. Ke2 {[%clk 0:01:21]}  Kf7 {[%clk 0:00:26]} 29. Rxc2 {[%clk 0:01:21]}  Rxc2+ {[%clk 0:00:26]} 30. Rd2 {[%clk 0:01:21]}  Rc6 {[%clk 0:00:26]} 31. Kd3 {[%clk 0:01:19]}  Ke6 {[%clk 0:00:19]} 32. Rc2 {[%clk 0:01:19]}  Ra6 {[%clk 0:00:18]} 33. a4 {[%clk 0:01:16]}  Rb6 {[%clk 0:00:18]} 34. Kc3 {[%clk 0:01:12]}  a5 {[%clk 0:00:17]} 35. Kb2 {[%clk 0:01:06]}  Kd5 {[%clk 0:00:15]} 36. Rc4 {[%clk 0:01:05]}  Ke5 {[%clk 0:00:13]} 37. Kc3 {[%clk 0:01:04]}  Rb7 {[%clk 0:00:08]} 38. b4 {[%clk 0:01:02]}  d5 {[%clk 0:00:07]} 39. Rh4 {[%clk 0:01:02]}  Rc7+ {[%clk 0:00:03]} 40. Kd2 {[%clk 0:00:58]}  axb4 {[%clk 0:00:03]} 41. Rxb4 {[%clk 0:00:57]}  d4 {[%clk 0:00:03]} 42. a5 {[%clk 0:00:54]}  Rc5 {[%clk 0:00:03]} 43. Ra4 {[%clk 0:00:53]}  Kd5 {[%clk 0:00:03]} 44. a6 {[%clk 0:00:52]}  Rc8 {[%clk 0:00:03]} 45. a7 {[%clk 0:00:52]}  Ra8 {[%clk 0:00:04]} 46. Kd3 {[%clk 0:00:53]}  Ke5 {[%clk 0:00:04]} 47. Ra5+ {[%clk 0:00:53]}  Kf4 {[%clk 0:00:04]} 48. Kxd4 {[%clk 0:00:53]} 1-0


[Site "https://www.chess.com"]

[Event "Titled Tuesday Blitz May 2 Early 2023"]
[White "Kohler, Aran"]
[Black "Karwowski, Kacper"]
[WhiteFideId "1002856"]
[BlackFideId "1126032"]
[WhiteElo "2010"]
[BlackElo "2261"]
[Result "0-1"]
[Round "04"]
[TimeControl "180+2"]
[Date "2023.05.02"]
[WhiteClock "0:01:16"]
[BlackClock "0:01:55"]

1. e4 {[%clk 0:03:00]}  c5 {[%clk 0:02:52]} 2. Nc3 {[%clk 0:03:00]}  Nc6 {[%clk 0:02:52]} 3. f4 {[%clk 0:03:00]}  e6 {[%clk 0:02:51]} 4. Bc4 {[%clk 0:02:59]}  Nge7 {[%clk 0:02:50]} 5. a3 {[%clk 0:02:55]}  g6 {[%clk 0:02:49]} 6. d3 {[%clk 0:02:55]}  Bg7 {[%clk 0:02:49]} 7. Nf3 {[%clk 0:02:55]}  d5 {[%clk 0:02:50]} 8. Ba2 {[%clk 0:02:55]}  O-O {[%clk 0:02:50]} 9. O-O {[%clk 0:02:54]}  a6 {[%clk 0:02:49]} 10. Qe1 {[%clk 0:02:51]}  b5 {[%clk 0:02:49]} 11. f5 {[%clk 0:02:48]}  c4 {[%clk 0:02:42]} 12. Qh4 {[%clk 0:02:40]}  exf5 {[%clk 0:02:29]} 13. exd5 {[%clk 0:02:07]}  Nxd5 {[%clk 0:02:22]} 14. Qxd8 {[%clk 0:01:48]}  Rxd8 {[%clk 0:02:23]} 15. Nxd5 {[%clk 0:01:47]}  Rxd5 {[%clk 0:02:24]} 16. dxc4 {[%clk 0:01:48]}  bxc4 {[%clk 0:02:22]} 17. Bxc4 {[%clk 0:01:48]}  Rc5 {[%clk 0:02:23]} 18. b3 {[%clk 0:01:47]}  Bxa1 {[%clk 0:02:21]} 19. Be3 {[%clk 0:01:46]}  Rxc4 {[%clk 0:02:20]} 20. bxc4 {[%clk 0:01:45]}  Bf6 {[%clk 0:02:20]} 21. Rb1 {[%clk 0:01:41]}  Be6 {[%clk 0:02:18]} 22. Rb6 {[%clk 0:01:38]}  Ne5 {[%clk 0:02:17]} 23. Nxe5 {[%clk 0:01:32]}  Bxe5 {[%clk 0:02:18]} 24. c5 {[%clk 0:01:32]}  f4 {[%clk 0:02:14]} 25. Bf2 {[%clk 0:01:31]}  Rd8 {[%clk 0:02:14]} 26. h3 {[%clk 0:01:27]}  Rd1+ {[%clk 0:02:12]} 27. Kh2 {[%clk 0:01:27]}  f3+ {[%clk 0:02:07]} 28. g3 {[%clk 0:01:27]}  h5 {[%clk 0:02:05]} 29. h4 {[%clk 0:01:22]}  Bh3 {[%clk 0:02:03]} 30. c6 {[%clk 0:01:17]}  Bg2 {[%clk 0:01:56]} 31. Bg1 {[%clk 0:01:17]}  Rxg1 {[%clk 0:01:55]} 32. Kxg1 {[%clk 0:01:16]}  Bd4+ {[%clk 0:01:55]} 0-1


[Site "https://www.chess.com"]

[Event "Titled Tuesday Blitz May 2 Early 2023"]
[White "Wessendorf, Thomas, Dr."]
[Black "Salman, Pavel"]
[WhiteFideId "4604270"]
[BlackFideId "24153753"]
[WhiteElo "2280"]
[BlackElo "2187"]
[Result "1-0"]
[Round "04"]
[TimeControl "180+2"]
[Date "2023.05.02"]
[WhiteClock "0:00:03"]
[BlackClock "0:00:05"]

1. e4 {[%clk 0:03:00]}  c5 {[%clk 0:02:58]} 2. Nf3 {[%clk 0:03:00]}  e6 {[%clk 0:02:57]} 3. d3 {[%clk 0:02:59]}  Nc6 {[%clk 0:02:56]} 4. g3 {[%clk 0:02:59]}  g6 {[%clk 0:02:57]} 5. Bg2 {[%clk 0:02:57]}  Bg7 {[%clk 0:02:57]} 6. O-O {[%clk 0:02:58]}  Nge7 {[%clk 0:02:57]} 7. Re1 {[%clk 0:02:55]}  O-O {[%clk 0:02:57]} 8. e5 {[%clk 0:02:55]}  d6 {[%clk 0:02:55]} 9. exd6 {[%clk 0:02:55]}  Qxd6 {[%clk 0:02:56]} 10. Nbd2 {[%clk 0:02:55]}  b6 {[%clk 0:02:51]} 11. Nc4 {[%clk 0:02:51]}  Qd8 {[%clk 0:02:48]} 12. Bf4 {[%clk 0:02:39]}  Ba6 {[%clk 0:02:47]} 13. c3 {[%clk 0:02:28]}  Nd5 {[%clk 0:02:45]} 14. Nfe5 {[%clk 0:02:04]}  Nxf4 {[%clk 0:02:07]} 15. Nxc6 {[%clk 0:01:58]}  Qxd3 {[%clk 0:02:06]} 16. Ne7+ {[%clk 0:01:41]}  Kh8 {[%clk 0:02:06]} 17. Bxa8 {[%clk 0:01:41]}  Nh3+ {[%clk 0:01:37]} 18. Kg2 {[%clk 0:01:35]}  Qxc4 {[%clk 0:01:34]} 19. Bf3 {[%clk 0:01:18]}  Ng5 {[%clk 0:01:33]} 20. Be2 {[%clk 0:01:12]}  Bb7+ {[%clk 0:01:33]} 21. f3 {[%clk 0:00:58]}  Qg4 {[%clk 0:01:24]} 22. Rf1 {[%clk 0:00:26]}  Bf6 {[%clk 0:01:10]} 23. Qd6 {[%clk 0:00:21]}  Qh3+ {[%clk 0:00:30]} 24. Kg1 {[%clk 0:00:21]}  h5 {[%clk 0:00:28]} 25. Nxg6+ {[%clk 0:00:20]}  Kg7 {[%clk 0:00:22]} 26. Qxf8+ {[%clk 0:00:18]}  Kxg6 {[%clk 0:00:21]} 27. Qd6 {[%clk 0:00:16]}  Kg7 {[%clk 0:00:20]} 28. Rad1 {[%clk 0:00:15]}  h4 {[%clk 0:00:18]} 29. Qf4 {[%clk 0:00:14]}  hxg3 {[%clk 0:00:16]} 30. Qxg3 {[%clk 0:00:13]}  Kf8 {[%clk 0:00:09]} 31. Rd7 {[%clk 0:00:12]}  Bc6 {[%clk 0:00:09]} 32. Rxa7 {[%clk 0:00:10]}  Qh7 {[%clk 0:00:06]} 33. h4 {[%clk 0:00:08]}  Ne4 {[%clk 0:00:03]} 34. fxe4 {[%clk 0:00:06]}  Qxe4 {[%clk 0:00:04]} 35. Bf3 {[%clk 0:00:07]}  Qe3+ {[%clk 0:00:05]} 36. Kg2 {[%clk 0:00:06]}  Bb5 {[%clk 0:00:05]} 37. Rf2 {[%clk 0:00:05]}  Be5 {[%clk 0:00:05]} 38. Qg5 {[%clk 0:00:04]}  Bc6 {[%clk 0:00:04]} 39. Qe7+ {[%clk 0:00:03]}  Kg7 {[%clk 0:00:04]} 40. Qxf7+ {[%clk 0:00:03]}  Kh6 {[%clk 0:00:05]} 41. Qh7# {[%clk 0:00:03]} 1-0


[Site "https://www.chess.com"]

[Event "Titled Tuesday Blitz May 2 Early 2023"]
[White "Arpita, Mukherjee"]
[Black "Ciuffoletti, Paolo"]
[WhiteFideId "5056403"]
[BlackFideId "807630"]
[WhiteElo "2129"]
[BlackElo "2143"]
[Result "1-0"]
[Round "04"]
[TimeControl "180+2"]
[Date "2023.05.02"]
[WhiteClock "0:02:03"]
[BlackClock "0:00:28"]

1. e4 {[%clk 0:03:00]}  c5 {[%clk 0:02:59]} 2. Nf3 {[%clk 0:03:00]}  Nc6 {[%clk 0:02:59]} 3. Bb5 {[%clk 0:03:00]}  e6 {[%clk 0:02:58]} 4. O-O {[%clk 0:02:59]}  Nge7 {[%clk 0:02:58]} 5. d4 {[%clk 0:02:59]}  cxd4 {[%clk 0:02:58]} 6. Nxd4 {[%clk 0:03:00]}  Nxd4 {[%clk 0:02:53]} 7. Qxd4 {[%clk 0:02:59]}  a6 {[%clk 0:02:49]} 8. Be2 {[%clk 0:02:59]}  Nc6 {[%clk 0:02:48]} 9. Qe3 {[%clk 0:02:53]}  Be7 {[%clk 0:02:44]} 10. c4 {[%clk 0:02:53]}  O-O {[%clk 0:02:41]} 11. Nc3 {[%clk 0:02:53]}  d6 {[%clk 0:02:41]} 12. b3 {[%clk 0:02:52]}  Bd7 {[%clk 0:02:25]} 13. Bb2 {[%clk 0:02:50]}  Rc8 {[%clk 0:02:24]} 14. Rad1 {[%clk 0:02:50]}  Qa5 {[%clk 0:02:10]} 15. Kh1 {[%clk 0:02:43]}  Na7 {[%clk 0:01:45]} 16. Qxa7 {[%clk 0:02:32]}  Rc5 {[%clk 0:01:28]} 17. a3 {[%clk 0:02:17]}  b5 {[%clk 0:00:45]} 18. b4 {[%clk 0:02:11]}  Rc7 {[%clk 0:00:28]} 19. Qe3 {[%clk 0:02:03]} 1-0


[Site "https://www.chess.com"]

[Event "Titled Tuesday Blitz May 2 Early 2023"]
[White "Stanojevic, Ilija"]
[Black "Winkels, Marcel"]
[WhiteFideId "959995"]
[BlackFideId "1003887"]
[WhiteElo "2138"]
[BlackElo "1900"]
[Result "1-0"]
[Round "04"]
[TimeControl "180+2"]
[Date "2023.05.02"]
[WhiteClock "0:00:38"]
[BlackClock "0:01:09"]

1. d4 {[%clk 0:03:00]}  Nf6 {[%clk 0:02:58]} 2. c4 {[%clk 0:03:00]}  g6 {[%clk 0:02:59]} 3. Nc3 {[%clk 0:02:59]}  d5 {[%clk 0:02:59]} 4. h4 {[%clk 0:03:00]}  c6 {[%clk 0:02:52]} 5. h5 {[%clk 0:02:49]}  Nxh5 {[%clk 0:02:51]} 6. e4 {[%clk 0:02:49]}  dxe4 {[%clk 0:02:47]} 7. Nxe4 {[%clk 0:02:50]}  Nf6 {[%clk 0:02:47]} 8. Ng5 {[%clk 0:02:30]}  Bg7 {[%clk 0:02:46]} 9. N1f3 {[%clk 0:02:29]}  h6 {[%clk 0:02:40]} 10. Nxf7 {[%clk 0:02:17]}  Kxf7 {[%clk 0:02:39]} 11. Ne5+ {[%clk 0:02:18]}  Ke8 {[%clk 0:02:36]} 12. Bd3 {[%clk 0:02:11]}  Bf5 {[%clk 0:02:34]} 13. Nxg6 {[%clk 0:02:01]}  Bxg6 {[%clk 0:02:23]} 14. Bxg6+ {[%clk 0:02:02]}  Kf8 {[%clk 0:02:24]} 15. Be3 {[%clk 0:02:02]}  Nbd7 {[%clk 0:02:15]} 16. Qd2 {[%clk 0:02:01]}  Ng4 {[%clk 0:02:11]} 17. O-O-O {[%clk 0:01:56]}  Nxe3 {[%clk 0:02:10]} 18. fxe3 {[%clk 0:01:57]}  Nf6 {[%clk 0:02:07]} 19. Rdf1 {[%clk 0:01:54]}  h5 {[%clk 0:01:50]} 20. g4 {[%clk 0:01:25]}  hxg4 {[%clk 0:01:41]} 21. Rxh8+ {[%clk 0:01:26]}  Bxh8 {[%clk 0:01:41]} 22. e4 {[%clk 0:01:27]}  Bg7 {[%clk 0:01:33]} 23. e5 {[%clk 0:01:25]}  Kg8 {[%clk 0:01:24]} 24. exf6 {[%clk 0:01:12]}  exf6 {[%clk 0:01:24]} 25. Bf5 {[%clk 0:01:03]}  g3 {[%clk 0:01:23]} 26. Be6+ {[%clk 0:00:59]}  Kf8 {[%clk 0:01:22]} 27. d5 {[%clk 0:00:57]}  Qd6 {[%clk 0:01:20]} 28. Kb1 {[%clk 0:00:44]}  cxd5 {[%clk 0:01:15]} 29. cxd5 {[%clk 0:00:44]}  Rd8 {[%clk 0:01:11]} 30. Qe3 {[%clk 0:00:39]}  Qe5 {[%clk 0:01:09]} 31. Qxe5 {[%clk 0:00:38]} 1-0


[Site "https://www.chess.com"]

[Event "Titled Tuesday Blitz May 2 Early 2023"]
[White "De Souza, Cristiano Gomes"]
[Black "Ramirez Vido, Robert Yorisan"]
[WhiteFideId "2151758"]
[BlackFideId "3513823"]
[WhiteElo "2068"]
[BlackElo "2015"]
[Result "1-0"]
[Round "04"]
[TimeControl "180+2"]
[Date "2023.05.02"]
[WhiteClock "0:01:14"]
[BlackClock "0:00:10"]

1. d4 {[%clk 0:03:00]}  g6 {[%clk 0:02:55]} 2. c4 {[%clk 0:03:00]}  Nf6 {[%clk 0:02:55]} 3. Nf3 {[%clk 0:03:00]}  Bg7 {[%clk 0:02:54]} 4. Nc3 {[%clk 0:03:00]}  O-O {[%clk 0:02:53]} 5. e4 {[%clk 0:03:00]}  d6 {[%clk 0:02:47]} 6. Be2 {[%clk 0:03:00]}  Na6 {[%clk 0:02:43]} 7. O-O {[%clk 0:02:59]}  e5 {[%clk 0:02:44]} 8. Be3 {[%clk 0:02:57]}  Ng4 {[%clk 0:02:43]} 9. Bg5 {[%clk 0:02:57]}  Qe8 {[%clk 0:02:43]} 10. d5 {[%clk 0:02:56]}  f6 {[%clk 0:02:34]} 11. Bh4 {[%clk 0:02:56]}  f5 {[%clk 0:02:28]} 12. Nd2 {[%clk 0:02:53]}  Nf6 {[%clk 0:02:27]} 13. f3 {[%clk 0:02:51]}  f4 {[%clk 0:02:27]} 14. Rb1 {[%clk 0:02:48]}  h6 {[%clk 0:02:26]} 15. b4 {[%clk 0:02:46]}  g5 {[%clk 0:02:26]} 16. Bf2 {[%clk 0:02:46]}  h5 {[%clk 0:02:27]} 17. c5 {[%clk 0:02:46]}  g4 {[%clk 0:02:22]} 18. Nc4 {[%clk 0:02:41]}  g3 {[%clk 0:02:16]} 19. hxg3 {[%clk 0:02:41]}  fxg3 {[%clk 0:02:17]} 20. Bxg3 {[%clk 0:02:41]}  Qg6 {[%clk 0:02:12]} 21. Bf2 {[%clk 0:02:11]}  Bh3 {[%clk 0:02:06]} 22. Ne3 {[%clk 0:02:01]}  Bh6 {[%clk 0:02:00]} 23. Kh1 {[%clk 0:01:52]}  Bxe3 {[%clk 0:00:59]} 24. gxh3 {[%clk 0:01:50]}  Bxf2 {[%clk 0:00:53]} 25. Rxf2 {[%clk 0:01:50]}  Kh7 {[%clk 0:00:44]} 26. Rg2 {[%clk 0:01:47]}  Qh6 {[%clk 0:00:41]} 27. Bxa6 {[%clk 0:01:43]}  bxa6 {[%clk 0:00:39]} 28. Qc1 {[%clk 0:01:36]}  Qxc1+ {[%clk 0:00:22]} 29. Rxc1 {[%clk 0:01:35]}  dxc5 {[%clk 0:00:22]} 30. bxc5 {[%clk 0:01:34]}  Nd7 {[%clk 0:00:23]} 31. Rcg1 {[%clk 0:01:29]}  Rf7 {[%clk 0:00:20]} 32. d6 {[%clk 0:01:22]}  Nxc5 {[%clk 0:00:18]} 33. dxc7 {[%clk 0:01:22]}  Rxc7 {[%clk 0:00:11]} 34. Nd5 {[%clk 0:01:20]}  Rf7 {[%clk 0:00:11]} 35. Rg5 {[%clk 0:01:15]}  Nd3 {[%clk 0:00:10]} 36. Rxh5# {[%clk 0:01:14]} 1-0


[Site "https://www.chess.com"]

[Event "Titled Tuesday Blitz May 2 Early 2023"]
[White "Novikova, Galina"]
[Black "Hinds, Nathan"]
[WhiteFideId "4157095"]
[BlackFideId "7400730"]
[WhiteElo "1953"]
[BlackElo "2001"]
[Result "1-0"]
[Round "04"]
[TimeControl "180+2"]
[Date "2023.05.02"]
[WhiteClock "0:00:34"]
[BlackClock "0:00:01"]

1. e4 {[%clk 0:03:00]}  c6 {[%clk 0:02:59]} 2. d4 {[%clk 0:03:00]}  d5 {[%clk 0:03:00]} 3. e5 {[%clk 0:03:01]}  c5 {[%clk 0:03:00]} 4. dxc5 {[%clk 0:03:02]}  Nc6 {[%clk 0:03:01]} 5. a3 {[%clk 0:02:49]}  Nxe5 {[%clk 0:02:59]} 6. b4 {[%clk 0:02:49]}  Nc6 {[%clk 0:02:59]} 7. Bb2 {[%clk 0:02:49]}  Nf6 {[%clk 0:02:59]} 8. Nf3 {[%clk 0:02:47]}  g6 {[%clk 0:02:59]} 9. Nbd2 {[%clk 0:02:41]}  Bg7 {[%clk 0:02:59]} 10. Bd3 {[%clk 0:02:40]}  O-O {[%clk 0:02:59]} 11. O-O {[%clk 0:02:41]}  Bg4 {[%clk 0:02:59]} 12. h3 {[%clk 0:02:40]}  Bxf3 {[%clk 0:02:59]} 13. Nxf3 {[%clk 0:02:41]}  e6 {[%clk 0:02:59]} 14. Qe1 {[%clk 0:02:36]}  Ne7 {[%clk 0:02:56]} 15. Rd1 {[%clk 0:02:32]}  Qc8 {[%clk 0:02:43]} 16. Be5 {[%clk 0:02:27]}  Re8 {[%clk 0:02:31]} 17. Qc3 {[%clk 0:02:23]}  Nh5 {[%clk 0:02:28]} 18. Bxg7 {[%clk 0:02:23]}  Nxg7 {[%clk 0:02:28]} 19. Qf6 {[%clk 0:02:14]}  Nh5 {[%clk 0:02:16]} 20. Qh4 {[%clk 0:02:08]}  Kg7 {[%clk 0:01:35]} 21. Ne5 {[%clk 0:01:37]}  Ng8 {[%clk 0:01:30]} 22. f4 {[%clk 0:01:25]}  Qd8 {[%clk 0:01:22]} 23. Qf2 {[%clk 0:01:23]}  Nhf6 {[%clk 0:01:12]} 24. Qd4 {[%clk 0:01:21]}  b6 {[%clk 0:01:05]} 25. c6 {[%clk 0:01:19]}  Qd6 {[%clk 0:00:55]} 26. Kh1 {[%clk 0:01:13]}  Ne7 {[%clk 0:00:54]} 27. b5 {[%clk 0:01:13]}  a6 {[%clk 0:00:54]} 28. a4 {[%clk 0:01:13]}  axb5 {[%clk 0:00:48]} 29. axb5 {[%clk 0:01:14]}  h5 {[%clk 0:00:33]} 30. Qxb6 {[%clk 0:00:59]}  Reb8 {[%clk 0:00:29]} 31. Qd4 {[%clk 0:00:59]}  Nf5 {[%clk 0:00:26]} 32. Bxf5 {[%clk 0:00:54]}  exf5 {[%clk 0:00:27]} 33. Rb1 {[%clk 0:00:48]}  Ra5 {[%clk 0:00:24]} 34. b6 {[%clk 0:00:46]}  Qc5 {[%clk 0:00:21]} 35. Qxc5 {[%clk 0:00:45]}  Rxc5 {[%clk 0:00:22]} 36. c7 {[%clk 0:00:45]}  Rc8 {[%clk 0:00:19]} 37. b7 {[%clk 0:00:44]}  R5xc7 {[%clk 0:00:20]} 38. bxc8=Q {[%clk 0:00:44]}  Rxc8 {[%clk 0:00:21]} 39. Rb7 {[%clk 0:00:41]}  Ne4 {[%clk 0:00:18]} 40. Rxf7+ {[%clk 0:00:38]}  Kg8 {[%clk 0:00:18]} 41. Ra1 {[%clk 0:00:34]}  d4 {[%clk 0:00:07]} 42. Raa7 {[%clk 0:00:33]}  Ng3+ {[%clk 0:00:02]} 43. Kh2 {[%clk 0:00:33]}  Nf1+ {[%clk 0:00:02]} 44. Kg1 {[%clk 0:00:34]}  Ne3 {[%clk 0:00:01]} 45. Rg7+ {[%clk 0:00:34]} 1-0


[Site "https://www.chess.com"]